[Event "Bangabandhu Premier Div League 2023-24"]
[Site "Dhaka"]
[Date "2024.02.07"]
[Round "7.7"]
[White "Harikrishnan.A.Ra"]
[Black "Rabby, Salim"]
[Result "1-0"]
[ECO "A46"]
[WhiteElo "2454"]
[BlackElo "1931"]
[Annotator "TA"]
[PlyCount "78"]
[EventDate "2024.02.01"]
[EventCountry "BAN"]
[SourceTitle "playchess.com"]
[Source "ChessBase"]
[SourceQuality "1"]
[TimeControl "40/5400+30:1800+30"]

{[%evp 14,78,29,31,38,22,48,48,55,52,47,51,85,72,79,83,119,75,161,116,106,94,91,77,104,111,170,124,141,141,298,204,215,209,381,397,411,401,577,574,848,780,936,945,912,889,1147,1129,1070,871,1610,1625,2672,2425,2781,2511,2039,1670,4806,4706,29978,29979,29979,29980,29980,29981,29977]} 1. d4 {[%emt 0:00:15]} Nf6 {[%emt 0:01:00]} 2. Nf3 {[%emt 0:00:13]} g6 {[%emt 0:00:43]} 3. g3 {[%emt 1:31:32]} Bg7 {[%emt 1:30:17]} 4. Bg2 {[%emt 0:00:30]} c5 {[%emt 0:00:30]} 5. c3 {[%emt 0:00:30]} cxd4 {[%emt 0:00:00]} 6. cxd4 {[%emt 0:00:00]} O-O {[%emt 0:00:00]} 7. O-O {[%emt 0:01:00]} d6 {[%emt 0:00:00]} 8. Nc3 {[%emt 0:00:30]} Bg4 {[%emt 0:02:00]} 9. h3 {[%emt 0:00:30]} Bf5 {[%emt 0:00:30]} 10. Nh4 {[%emt 0:00:30]} Bc8 {[%emt 0:00:00] White is slightly better.} 11. e4 {[%emt 0:00:30]} Nc6 {[%emt 0:01:00]} 12. Be3 {[%emt 0:00:30]} Qa5 {[%emt 0:00:30]} 13. a3 {[%emt 0:00:30]} e5 {[%emt 0:00:30]} 14. Nf3 {[%emt 0:00:30]} Re8 {[%emt 0:00:30]} 15. Re1 {[%emt 0:00:30]} h6 {[%emt 0:00:30]} (15... exd4 $16 {was necessary.} 16. Nxd4 Nxd4) 16. b4 {[%emt 0:00:30]} Qd8 {[%emt 0:00:00]} 17. Qd2 {[%emt 0:00:30]} Kh7 {[%emt 0:00:00]} 18. Rad1 {[%emt 0:00:30]} exd4 {[%emt 0:01:30]} 19. Nxd4 {[%emt 0:00:30]} Ne5 {[%emt 0:00:00]} (19... Nxd4 $16 20. Bxd4 Be6) 20. Qe2 {[%emt 0:00:30]} (20. Qa2 $18) 20... a6 $16 {[%emt 0:00:00]} 21. f4 {[%emt 0:00:30] White is more active.} Nc6 {[%emt 0:00:00] Black cannot hold the game after this.} (21... Qc7 $16) 22. Nxc6 {[%emt 0:00:00]} bxc6 {[%emt 0:00:00]} 23. e5 {[%emt 0:01:00]} Nd5 $2 {[%emt 0:02:30]} (23... d5 24. Qc2 (24. exf6 Qxf6 25. Rc1 Bf5 $18) 24... Bf5) 24. Nxd5 $18 {[%emt 0:00:30]} cxd5 {[%emt 0:00:00]} 25. Bxd5 {[%emt 0:00:30][%cal Bg2d5,Bd5f7,Bf7g6,Bg6e4][%mdl 32]} Bxh3 {[%emt 0:01:00]} (25... Be6 {might work better.} 26. Bxa8 Qxa8 27. Rxd6 (27. exd6 Qb7 $18) 27... Rc8 28. Rxa6 Qb7 29. Rxe6 fxe6) 26. Bxf7 {[%emt 0:00:30]} Re7 {[%emt 0:00:00]} 27. Rxd6 {[%emt 0:00:00]} Qc8 {[%emt 0:01:00]} 28. Bxg6+ {[%emt 0:00:00]} Kh8 {[%emt 0:00:30]} 29. Be4 {[%emt 0:01:30]} Rb8 {[%emt 0:00:00]} 30. Qh5 {[%emt 0:00:30]} Be6 {[%emt 0:01:00]} 31. Rc1 {[%emt 0:00:30]} Qf8 {[%emt 0:00:00]} 32. Rcc6 {[%emt 0:00:30]} Rbe8 {[%emt 0:01:00]} 33. f5 {[%emt 0:00:30]} Bf7 {[%emt 0:00:30]} 34. Qh4 {[%emt 0:00:00][%cal Rd6h6] Intending Rxh6+ and mate.} Rxe5 {[%emt 0:00:00] [#]} 35. Bd4 $1 {[%emt 0:00:00]} h5 {[%emt 0:01:00]} (35... Kg8 36. Bxe5) 36. Bxe5 {[%emt 0:01:30]} Bxe5 {[%emt 0:00:00]} 37. Rh6+ {[%emt 0:00:30] White mates.} Kg8 {[%emt 0:00:00] [#]} 38. Rcg6+ $1 {[%emt 0:00:30]} Bg7 {[%emt 0:00:00] [#]} 39. f6 $1 Bxg6 {[%emt 0:00:00] Weighted Error Value: White=0.22 (precise) /Black=0.58.  Mistake:       	White=1     	Black=5      Inaccurate:     	White=2     	Black=5      OK:         	White=5     	Black=4      Best:        	White=2     	---} (39... Rxe4 40. Qxe4) 1-0

[Event "Bangabandhu Premier Div League 2023-24"]
[Site "Dhaka"]
[Date "2024.02.07"]
[Round "7.7"]
[White "Tanvir, Alam"]
[Black "Mayank Chakraborty"]
[Result "0-1"]
[ECO "D38"]
[WhiteElo "1836"]
[BlackElo "2409"]
[Annotator "TA"]
[PlyCount "80"]
[EventDate "2024.02.01"]
[EventCountry "BAN"]
[SourceTitle "playchess.com"]
[Source "ChessBase"]
[SourceQuality "1"]
[TimeControl "40/5400+30:1800+30"]

{[%evp 14,80,33,-13,23,18,25,8,14,0,28,23,35,32,33,34,37,16,39,30,36,0,16,-20,-16,-19,-6,-8,29,0,0,0,0,-19,-12,-46,-44,-50,-25,-19,-31,-136,-139,-133,-134,-215,-213,-218,-206,-208,-213,-216,-227,-213,-180,-180,-190,-326,-334,-365,-354,-682,-683,-677,-689,-731,-723,-816,-806]} 1. d4 {[%emt 0:04:38]} Nf6 {[%emt 0:00:06]} 2. c4 {[%emt 0:00:08]} e6 {[%emt 0:00:03]} 3. Nc3 {[%emt 0:00:03]} Bb4 {[%emt 0:00:04]} 4. Qc2 {[%emt 0:00:04]} d5 {[%emt 0:00:09]} 5. Nf3 {[%emt 0:00:23]} O-O {[%emt 0:00:11]} 6. Bg5 {[%emt 0:00:06]} h6 {[%emt 0:02:05]} 7. Bxf6 {[%emt 0:01:19]} Qxf6 {[%emt 0:00:07]} 8. e3 {[%emt 0:00:06]} (8. a3 $14 Bxc3+ 9. Qxc3) 8... c6 {[%emt 0:03:41]} 9. Be2 {[%emt 0:00:50]} Nd7 {[%emt 0:02:35]} 10. a3 {[%emt 0:00:06]} Bxc3+ {[%emt 0:01:18] The position is equal.} 11. Qxc3 {[%emt 0:00:07]} b6 {[%emt 0:05:37]} 12. cxd5 {[%emt 0:01:00]} exd5 {[%emt 0:00:06]} 13. Rc1 {[%emt 1:28:10]} Bb7 {[%emt 0:00:30]} 14. O-O {[%emt 0:00:00]} Qe7 {[%emt 0:05:28]} 15. Rfd1 {[%emt 0:00:00]} Rfc8 {[%emt 0:03:08]} 16. Bd3 {[%emt 0:00:00]} Nf6 {[%emt 0:10:23]} 17. Bb1 {[%emt 0:00:00]} c5 {[%emt 0:06:02]} 18. Qd3 {[%emt 0:00:00]} (18. dxc5 {simplifies} bxc5 19. b4 cxb4 20. Qxb4 Qxb4 21. axb4 Rc4 22. Rxc4 dxc4 23. Ba2) 18... c4 {[%emt 0:01:45]} 19. Qf5 {[%emt 0:00:00]} b5 {[%emt 0:14:28]} 20. Ne5 {[%emt 0:00:00]} g6 {[%emt 0:00:48]} 21. Qf4 {[%emt 0:00:00]} Kg7 {[%emt 0:00:16]} 22. h4 {[%emt 0:00:00]} a5 {[%emt 0:03:12]} 23. g4 {[%emt 0:00:00]} Nd7 {[%emt 0:12:05]} 24. Nf3 {[%emt 0:00:00]} (24. Qg3 {simplifies} b4 25. axb4 axb4 26. Nxd7 Qxd7 27. h5) 24... b4 {[%emt 0:01:57]} 25. h5 {[%emt 0:00:00]} g5 $36 {[%emt 0:06:54][%mdl 2048] Black fights for an advantage.} 26. Qf5 {[%emt 0:00:00]} Rh8 {[%emt 0:01:17] Prevents Qh7+} 27. Nd2 {[%emt 0:00:00]} (27. axb4 $15 axb4 28. e4) 27... bxa3 $17 {[%emt 0:02:04]} 28. bxa3 {[%emt 0:00:00]} Nf6 {[%emt 0:00:49][%cal Ob7c8] Hoping for ...Bc8!} 29. Qf3 {[%emt 0:00:00] [#]} (29. e4 $17 Bc8 30. Qe5 Qxa3 31. exd5) 29... Bc8 $1 $19 {[%emt 0:03:18]} ({Stronger than} 29... Qxa3 30. Nxc4 Qe7 (30... dxc4 31. Qxb7 Qb3 32. Qf3 $14) 31. Ne5 $11) 30. Bf5 {[%emt 0:00:00]} Qxa3 {[%emt 0:01:31]} 31. Nb1 {[%emt 0:00:00]} Qd6 {[%emt 0:00:32]} 32. Nc3 {[%emt 0:00:00]} Bxf5 {[%emt 0:00:31]} 33. Qxf5 {[%emt 0:00:00]} Qe6 {[%emt 0:00:23]} 34. Qxe6 {[%emt 0:00:00]} fxe6 {[%emt 0:00:01]} 35. Ra1 {[%emt 0:00:00]} (35. Rb1 {keeps fighting.}) 35... Nxg4 {[%emt 0:00:24]} 36. e4 {[%emt 0:00:00]} Nf6 {[%emt 0:00:59][%csl LRe4,LRh5]} 37. e5 $2 {[%emt 0:00:00] [#]} (37. exd5 Nxd5 (37... exd5 $2 38. Rdb1 $19) 38. Na4) 37... Nxh5 {[%emt 0:00:09] Black is clearly winning.} 38. Rdb1 {[%emt 0:00:00]} Nf4 {[%emt 0:00:16] Against Ne2} 39. Rb7+ {[%emt 0:00:00]} Kg6 {[%emt 0:00:09]} 40. Rb5 {[%emt 0:00:00]} Rhb8 {[%emt 0:00:00] Weighted Error Value: White=0.37/Black=0.07 (flawless) .  Mistake:       	White=4     	---        Inaccurate:     	White=3     	Black=2      OK:         	White=8     	Black=15     Best:        	---       	Black=1      Strong:       	---       	Black=1} 0-1

[Event "Bangabandhu Premier Div League 2023-24"]
[Site "Dhaka"]
[Date "2024.02.07"]
[Round "7.8"]
[White "Arpan Das"]
[Black "Asif, Mahmud"]
[Result "1-0"]
[ECO "C65"]
[WhiteElo "2367"]
[BlackElo "1906"]
[Annotator "TA"]
[PlyCount "117"]
[EventDate "2024.02.01"]
[EventCountry "BAN"]
[SourceTitle "playchess.com"]
[Source "ChessBase"]
[SourceQuality "1"]
[TimeControl "40/5400+30:1800+30"]

{[%evp 9,117,18,19,18,25,14,19,17,20,14,8,8,20,14,12,13,59,60,48,55,50,58,50,46,58,37,42,37,41,33,38,33,43,47,39,40,44,54,75,74,79,76,86,76,82,66,84,78,132,113,131,132,212,217,230,190,184,174,173,132,130,118,118,118,118,118,118,118,118,118,126,118,126,118,118,112,112,112,112,112,112,112,118,111,111,111,111,111,111,99,121,121,121,120,127,127,127,127,225,185,5498,5231,5206,5197,29950,29949,29953,29944,5673,5281]} 1. e4 {[%emt 0:14:53]} e5 {[%emt 0:00:02]} 2. Nf3 {[%emt 0:00:08]} Nc6 {[%emt 0:00:18]} 3. Bb5 {[%emt 0:00:22]} Nf6 {[%emt 0:00:24]} 4. d3 {[%emt 0:00:13][%cal Bd2d3,Bd3d4][%mdl 32]} Bc5 {[%emt 0:00:57]} 5. Bxc6 {[%emt 0:00:09]} dxc6 {[%emt 0:00:23]} 6. O-O {[%emt 1:17:45]} (6. Nxe5 $2 {too greedy.} Qd4 7. O-O Qxe5 $19) 6... Nd7 {[%emt 0:12:26]} 7. c3 {[%emt 0:00:00]} O-O {[%emt 0:01:36]} 8. d4 {[%emt 0:00:00] The position is equal.} Bd6 {[%emt 0:01:21]} 9. Bg5 {[%emt 0:00:00][%cal Bc1g5,Bg5h4,Bh4g3][%mdl 32]} f6 {[%emt 0:01:20]} 10. Bh4 {[%emt 0:02:00]} Qe7 {[%emt 0:08:11]} 11. Nbd2 {[%emt 0:00:00]} Re8 {[%emt 0:08:36]} 12. Re1 {[%emt 0:01:00]} Nf8 {[%emt 1:00:56]} (12... a5 $11) 13. dxe5 $14 {[%emt 0:00:00]} Bxe5 {[%emt 0:00:00]} 14. Nxe5 {[%emt 0:00:00]} Qxe5 {[%emt 0:01:00]} 15. Bg3 {[%emt 0:00:00]} Qe7 {[%emt 0:00:30]} 16. Qb3+ {[%emt 0:00:00]} Kh8 {[%emt 0:00:00]} 17. h4 {[%emt 0:02:30]} b6 {[%emt 0:01:00]} 18. Qa4 {[%emt 0:00:30]} Bb7 {[%emt 0:00:30]} 19. Nf1 {[%emt 0:00:00][%cal Bd2f1,Bf1e3,Be3f5][%mdl 32]} a5 {[%emt 0:00:30]} 20. f3 {[%emt 0:00:00]} Rad8 {[%emt 0:00:30]} 21. Rad1 {[%emt 0:00:00]} Ne6 {[%emt 0:00:00]} 22. Ne3 {[%emt 0:02:00]} Rxd1 {[%emt 0:01:00]} 23. Rxd1 {[%emt 0:00:00]} Rd8 {[%emt 0:00:30]} 24. Nf5 {[%emt 0:00:00]} Rxd1+ {[%emt 0:00:00]} 25. Qxd1 {[%emt 0:00:00]} Qf7 {[%emt 0:01:00] [#]} 26. h5 $1 {[%emt 0:02:00] White is much more active.} g6 {[%emt 0:00:30]} (26... Bc8 27. h6) 27. Ne3 {[%emt 0:00:00]} Kg7 {[%emt 0:00:30]} 28. Qd2 {[%emt 0:00:00]} Qe7 {[%emt 0:00:00]} (28... Bc8 $142) 29. Ng4 $16 {[%emt 0:00:00]} Ng5 {[%emt 0:01:00]} 30. hxg6 {[%emt 0:01:17]} hxg6 {[%emt 0:00:00] [#]} (30... Kxg6 $16 {is a better defense.} 31. Qf4 Bc8) 31. Bh4 $1 $18 {[%emt 0:00:19][%cal Oe4e5] e5! is the strong threat.} Bc8 {[%emt 0:00:00] [#]} 32. Nxf6 {[%emt 0:01:24][%mdl 512]} Qxf6 {[%emt 0:00:00]} 33. Bxg5 {[%emt 0:00:00]} ({Resist} 33. Qxg5 Qxg5 34. Bxg5 Kf7) 33... Qd6 {[%emt 0:02:00]} 34. Qxd6 {[%emt 0:00:18]} cxd6 {[%emt 0:00:30][%mdl 4096] Endgame. KB-KB} 35. Bd8 {[%emt 0:01:12]} a4 {[%emt 0:00:00]} 36. Bxb6 {[%emt 0:00:00]} Be6 {[%emt 0:01:00]} 37. a3 {[%emt 0:00:05]} Kf7 {[%emt 0:00:00]} 38. Kf2 {[%emt 0:00:03]} Bc4 {[%emt 0:00:00]} 39. Ke3 {[%emt 0:00:15]} Ke6 {[%emt 0:00:00]} 40. Bc7 {[%emt 0:02:07]} Bf1 {[%emt 0:00:00]} 41. g3 {[%emt 0:28:54]} Bc4 {[%emt 0:27:03]} 42. Kf4 {[%emt 0:02:06]} Be2 {[%emt 0:00:00]} 43. Bd8 {[%emt 0:00:00]} Bd1 {[%emt 0:00:00]} 44. Bg5 {[%emt 0:00:00]} Be2 {[%emt 0:00:00]} 45. Bh6 {[%emt 0:00:00]} Bd1 {[%emt 0:00:00]} 46. Bg7 {[%emt 0:00:00]} Be2 {[%emt 0:00:00]} 47. Bh8 {[%emt 0:00:00]} Bd1 {[%emt 0:08:27]} 48. Ke3 {[%emt 0:03:00]} Bb3 {[%emt 0:00:00]} 49. Kd2 {[%emt 0:00:00]} Bc4 {[%emt 0:01:00]} 50. f4 {[%emt 0:00:00]} Bf1 {[%emt 0:00:00]} 51. Ke3 {[%emt 0:00:00]} Bh3 {[%emt 0:00:00]} 52. Kf3 {[%emt 0:00:00]} Bf1 {[%emt 0:00:00]} 53. g4 {[%emt 0:00:00][%cal Bg3g4,Bg4g5,Bg5g6][%mdl 32]} Bh3 {[%emt 0:00:00]} (53... Kf7 $16 {might work better.} 54. f5 g5) 54. f5+ {[%emt 0:00:00]} gxf5 $2 {[%emt 0:00:00]} (54... Kf7 55. Bd4 Bf1) 55. exf5+ {[%emt 0:00:00]} Kf7 {[%emt 0:00:00]} 56. Kf4 {[%emt 0:00:00] Intending Bd4 and mate.} Bf1 {[%emt 0:00:00]} 57. g5 {[%emt 0:00:00]} Bd3 {[%emt 0:00:00]} 58. g6+ {[%emt 0:00:00]} Kg8 {[%emt 0:00:00]} 59. Bf6 {[%emt 0:00:00] Weighted Error Value: White=0.05 (flawless) /Black=0.20 (precise) .  Mistake:       	---       	Black=5      OK:         	White=23    	Black=15     Best:        	White=1     	---} 1-0

[Event "Bangabandhu Premier Div League 2023-24"]
[Site "Dhaka"]
[Date "2024.02.07"]
[Round "7.8"]
[White "Subrota, Biswas"]
[Black "Diya Chowdhury"]
[Result "1-0"]
[ECO "B42"]
[WhiteElo "2223"]
[BlackElo "1881"]
[Annotator "TA"]
[PlyCount "48"]
[EventDate "2024.02.01"]
[EventCountry "BAN"]
[SourceTitle "playchess.com"]
[Source "ChessBase"]
[SourceQuality "1"]
[TimeControl "40/5400+30:1800+30"]

{[%evp 14,48,45,47,47,40,43,25,47,51,58,29,104,66,107,105,177,177,170,178,169,161,170,166,178,166,150,155,380,388,534,528,542,521,29998,628,29999]} 1. e4 {[%emt 0:03:28]} c5 {[%emt 0:00:09]} 2. Nf3 {[%emt 0:00:04]} e6 {[%emt 0:00:10]} 3. d4 {[%emt 0:00:02]} cxd4 {[%emt 0:00:19]} 4. Nxd4 {[%emt 0:00:05]} a6 {[%emt 0:00:08]} 5. Bd3 {[%emt 0:00:05]} Nf6 {[%emt 0:00:29]} 6. O-O {[%emt 0:00:20]} Qc7 {[%emt 0:00:08]} 7. Qe2 {[%emt 0:00:12]} d6 {[%emt 0:00:11]} 8. f4 {[%emt 0:00:02]} Nc6 {[%emt 0:00:36]} 9. Nxc6 {[%emt 0:00:09]} bxc6 {[%emt 0:00:17]} 10. Nd2 {[%emt 0:06:16]} d5 {[%emt 0:02:36] White has an edge.} 11. c4 {[%emt 0:03:22]} Be7 {[%emt 0:04:37]} 12. b3 {[%emt 0:02:07]} Bb7 {[%emt 0:02:15]} (12... a5 $11 {keeps the balance.}) 13. Bb2 $16 {[%emt 0:00:58]} Qb6+ {[%emt 0:04:30]} 14. Kh1 {[%emt 0:00:18]} d4 {[%emt 0:04:36]} (14... dxe4 $16 15. Nxe4 c5) 15. e5 $18 {[%emt 0:04:04][%cal Be4e5,Be5e6,Be6f7][%mdl 32]} Nd7 {[%emt 0:00:13]} 16. f5 {[%emt 0:00:01]} c5 {[%emt 0:02:26]} 17. fxe6 {[%emt 0:00:04]} Qxe6 {[%emt 0:00:37]} 18. Bf5 $36 {[%emt 0:01:21][%mdl 2048] Keeping Black busy.} Qc6 {[%emt 0:02:49]} 19. Be4 {[%emt 0:04:31]} Qc7 {[%emt 0:01:13]} 20. e6 {[%emt 0:00:50] White is much more active.} Nf6 {[%emt 0:01:10] [#]} (20... fxe6 $16 21. Bxb7 Qxb7) 21. exf7+ {[%emt 0:00:55]} Kf8 {[%emt 0:02:55] Black is weak on the light squares} 22. Bxb7 {[%emt 0:00:25]} Qxb7 {[%emt 0:00:09]} 23. Rae1 {[%emt 0:00:28]} Bd6 {[%emt 0:05:10]} 24. Qe6 {[%emt 1:12:23]} (24. Qe8+ $142 Nxe8 25. fxe8=Q#) 24... Ng8 {Black did not feel at home in the position after the opening.   Weighted Error Value: White=0.29 (precise) /Black=1.01.  Loses game:     	---       	Black=1      Mistake:       	White=1     	Black=2      Inaccurate:     	White=1     	Black=4      OK:         	White=4     	Black=3      Best:        	White=5     	---} 1-0

[Event "Bangabandhu Premier Div League 2023-24"]
[Site "Dhaka"]
[Date "2024.02.07"]
[Round "7.9"]
[White "Abu Sufian, Shakil"]
[Black "Kushagra Mohan"]
[Result "0-1"]
[ECO "C79"]
[WhiteElo "2199"]
[BlackElo "2374"]
[Annotator "TA"]
[PlyCount "124"]
[EventDate "2024.02.01"]
[EventCountry "BAN"]
[SourceTitle "playchess.com"]
[Source "ChessBase"]
[SourceQuality "1"]
[TimeControl "40/5400+30:1800+30"]

{[%evp 15,124,31,42,14,22,16,28,19,25,0,0,-2,0,0,0,0,0,0,22,24,38,0,0,0,7,0,0,0,0,-27,-16,-24,0,0,0,0,0,0,0,0,0,0,0,-1,-13,-27,-25,-22,-25,-22,-18,-54,-43,-52,-17,-101,-107,-125,-89,-205,-209,-278,-285,-302,-302,-301,-294,-297,-296,-287,-251,-254,-238,-254,-252,-256,-248,-256,-251,-280,-248,-311,0,-302,-291,-310,-309,-302,-291,-324,-320,-398,-374,-478,-477,-471,-471,-464,-456,-807,-704,-678,-648,-954,-843,-7441,-6556,-7120,-6410,-5089,-5073]} 1. e4 {[%emt 0:00:10]} e5 {[%emt 0:00:36]} 2. Nf3 {[%emt 0:00:08]} Nc6 {[%emt 0:00:03]} 3. Bb5 {[%emt 0:00:06]} a6 {[%emt 0:00:02]} 4. Ba4 {[%emt 0:00:06]} Nf6 {[%emt 0:00:02]} 5. O-O {[%emt 0:00:18]} d6 {[%emt 1:32:17]} 6. c3 {[%emt 0:08:01]} Bd7 {[%emt 0:00:00]} 7. Re1 {[%emt 0:01:05]} g6 {[%emt 0:01:00]} 8. d4 {[%emt 0:01:32]} Bg7 {[%emt 0:00:00]} 9. Nbd2 {[%emt 1:23:34]} exd4 {[%emt 0:00:00]} 10. cxd4 {[%emt 0:00:00]} O-O {[%emt 0:01:30]} 11. h3 {[%emt 0:00:00] White has an edge.} Nb4 {[%emt 0:00:00]} 12. Bb3 {[%emt 0:00:00]} Nd3 {[%emt 0:00:00]} 13. Re3 {[%emt 0:00:00]} Nxc1 {[%emt 0:00:00]} 14. Rxc1 {[%emt 0:00:00]} Nh5 {[%emt 0:02:00][%cal Bf6h5,Bh5f4,Bf4d5][%mdl 32]} 15. e5 {[%emt 0:00:00]} Nf4 {[%emt 0:00:00]} 16. Ne4 {[%emt 0:03:30]} dxe5 {[%emt 0:00:00]} 17. dxe5 {[%emt 0:00:00] g3 is the strong threat.} Bc6 {[%emt 0:00:00]} 18. Nd4 {[%emt 0:00:00]} Bd5 {[%emt 0:00:00]} 19. Nf3 {[%emt 0:00:00]} c6 {[%emt 0:00:00]} 20. Bxd5 {[%emt 0:00:00]} Nxd5 {[%emt 0:00:00]} 21. Rb3 {[%emt 0:00:00]} Qe7 {[%emt 0:00:00]} 22. Nc5 {[%emt 0:00:00] A dynamic duo of knights.} b6 {[%emt 0:04:00]} 23. Ne4 {[%emt 0:03:30]} Rac8 {[%emt 0:00:30]} 24. Nc3 {[%emt 0:00:00]} Nxc3 {[%emt 0:00:00]} 25. Rbxc3 {[%emt 0:00:00][%cal Od1a4]} c5 {[%emt 0:00:00]} 26. Qa4 {[%emt 0:00:00]} Qb7 {[%emt 0:00:00]} 27. Ra3 {[%emt 0:02:00]} Ra8 {[%emt 0:02:00]} 28. Rd3 {[%emt 0:00:30]} Rad8 {[%emt 0:00:00] Against Rd7} 29. Rcd1 {[%emt 0:00:00]} b5 {[%emt 0:00:00]} 30. Qa5 {[%emt 0:01:00]} Rxd3 {[%emt 0:00:00]} 31. Rxd3 {[%emt 0:00:00]} c4 {[%emt 0:00:00]} 32. Rd6 {[%emt 0:00:00]} Qe4 {[%emt 0:02:30]} 33. Rxa6 {[%emt 0:00:00]} Qb1+ {[%emt 0:00:00]} 34. Qe1 {[%emt 0:00:00]} Qxb2 {[%emt 0:00:00]} (34... Qxe1+ {simplifies} 35. Nxe1 Bxe5 36. Rb6 Bxb2 37. Rxb5 Bf6) 35. e6 {[%emt 0:00:00] [#]} (35. g4 $1 $11 {keeps the balance.}) 35... fxe6 $1 $17 {[%emt 0:00:00]} 36. Qxe6+ {[%emt 0:00:00]} Kh8 {[%emt 0:00:00] Black is more active.} 37. Rc6 {[%emt 0:02:19]} (37. Qd5 $17) 37... Qxa2 $19 {[%emt 0:00:00]} 38. Rc8 {[%emt 0:00:11] [#]} Qb1+ $1 {[%emt 0:00:00]} 39. Kh2 {[%emt 0:00:05]} Qf5 {[%emt 0:00:00] Dodges Ne5} 40. Qxf5 {[%emt 0:01:05]} gxf5 {[%emt 0:00:00][%mdl 4096] Endgame. KRB-KRN} 41. Rc5 {[%emt 0:30:10]} Rb8 {[%emt 0:00:00]} 42. Nd2 {[%emt 0:00:00]} c3 {[%emt 0:00:00]} 43. Nb3 {[%emt 0:00:00]} f4 {[%emt 0:00:00]} 44. g3 {[%emt 0:00:00]} fxg3+ {[%emt 0:00:00]} 45. Kxg3 {[%emt 0:00:00]} b4 {[%emt 0:00:00]} 46. Rc4 {[%emt 0:00:00]} Bf8 {[%emt 0:00:00]} 47. Kf4 {[%emt 0:00:00]} Re8 {[%emt 0:00:00]} 48. Nd4 {[%emt 0:00:00]} Rb8 {[%emt 0:00:00]} 49. Nb3 $1 {[%emt 0:00:00]} Rd8 {[%emt 0:38:30]} 50. Ke4 {[%emt 0:00:00]} Rd1 {[%emt 0:00:00]} 51. Nd4 {[%emt 0:00:00]} Kg8 {[%emt 0:00:00]} 52. Rc8 {[%emt 0:00:00]} Kf7 {[%emt 0:00:00] Wards off Ne6. And now ...Bg7 would win.} 53. f4 {[%emt 0:00:00]} Be7 {[%emt 0:00:00]} 54. Rc4 {[%emt 0:00:00]} Rb1 {[%emt 0:02:30] Black is clearly winning.} 55. Kf5 {[%emt 0:06:12]} Rh1 {[%emt 0:00:00]} 56. Rc7 {[%emt 0:01:40]} Rxh3 {[%emt 0:00:00] Hoping for ...Rh5+.} 57. Nc6 {[%emt 0:00:32]} (57. Rb7 $142) 57... Rh5+ {[%emt 0:00:00]} 58. Ke4 {[%emt 0:00:27]} Rc5 {[%emt 0:00:00] ...c2 would now be deadly.} (58... c2 59. Nxe7 Ke6 60. Rxc2 Kxe7 61. Rc7+ Kf8 62. Rb7 $16) 59. Ne5+ {[%emt 0:00:56]} Ke8 {[%emt 0:00:00]} 60. Rxc5 {[%emt 0:00:13]} Bxc5 {[%emt 0:00:00]} 61. Kd3 {[%emt 0:00:05]} h5 {[%emt 0:00:00] aiming for ...h4.} 62. Nf3 {[%emt 0:00:39]} Bf2 {[%emt 0:04:00] Weighted Error Value: White=0.40/Black=0.13 (very precise) .  Mistake:       	White=3     	---        Inaccurate:     	White=5     	Black=1      OK:         	White=16    	Black=23     Best:        	White=2     	Black=4      Strong:       	White=1     	Black=2} 0-1